[Event "Titled Tuesday Blitz June 6 Late 2023"]
[White "Bortnyk, Mykola"]
[Black "Prohaszka, Peter"]
[WhiteFideId "14120836"]
[BlackFideId "726265"]
[WhiteElo "2592"]
[BlackElo "2626"]
[Result "1-0"]
[Round "6"]
[TimeControl "180+2"]
[Date "2023.06.07"]
[WhiteClock "0:01:01"]
[BlackClock "0:00:02"]
[Board "13"]

1. e4 {[%clk 0:03:00]}  c6 {[%clk 0:02:57]} 2. d4 {[%clk 0:03:00]}  d5 {[%clk 0:02:58]} 3. exd5 {[%clk 0:03:01]}  cxd5 {[%clk 0:02:59]} 4. c4 {[%clk 0:03:01]}  Nf6 {[%clk 0:02:58]} 5. Nc3 {[%clk 0:03:02]}  Nc6 {[%clk 0:02:59]} 6. Bg5 {[%clk 0:03:02]}  Be6 {[%clk 0:02:58]} 7. Be2 {[%clk 0:03:02]}  Qa5 {[%clk 0:02:51]} 8. c5 {[%clk 0:03:02]}  Ne4 {[%clk 0:02:50]} 9. Nf3 {[%clk 0:03:02]}  Bg4 {[%clk 0:02:36]} 10. Bf4 {[%clk 0:02:59]}  g5 {[%clk 0:02:17]} 11. Be3 {[%clk 0:02:54]}  Bxf3 {[%clk 0:02:03]} 12. Bxf3 {[%clk 0:02:51]}  Nxc3 {[%clk 0:02:03]} 13. bxc3 {[%clk 0:02:43]}  Qxc3+ {[%clk 0:02:04]} 14. Kf1 {[%clk 0:02:40]}  e6 {[%clk 0:01:04]} 15. Rc1 {[%clk 0:02:37]}  Qa3 {[%clk 0:00:45]} 16. Rb1 {[%clk 0:02:28]}  Bg7 {[%clk 0:00:42]} 17. h4 {[%clk 0:02:27]}  g4 {[%clk 0:00:37]} 18. Bxg4 {[%clk 0:02:27]}  O-O {[%clk 0:00:36]} 19. Rh3 {[%clk 0:02:27]}  f5 {[%clk 0:00:24]} 20. Bh6 {[%clk 0:02:19]}  Qxa2 {[%clk 0:00:13]} 21. Ra1 {[%clk 0:02:19]}  Qc4+ {[%clk 0:00:08]} 22. Be2 {[%clk 0:02:19]}  Qxd4 {[%clk 0:00:09]} 23. Rg3 {[%clk 0:02:13]}  Qxd1+ {[%clk 0:00:08]} 24. Rxd1 {[%clk 0:02:13]}  Rf7 {[%clk 0:00:08]} 25. Bh5 {[%clk 0:02:10]}  Rd7 {[%clk 0:00:07]} 26. Re1 {[%clk 0:02:10]}  Nd4 {[%clk 0:00:07]} 27. Rd1 {[%clk 0:02:06]}  e5 {[%clk 0:00:05]} 28. f4 {[%clk 0:01:59]}  Kh8 {[%clk 0:00:03]} 29. Bxg7+ {[%clk 0:01:51]}  Rxg7 {[%clk 0:00:04]} 30. Rxg7 {[%clk 0:01:52]}  Kxg7 {[%clk 0:00:05]} 31. fxe5 {[%clk 0:01:52]}  Ne6 {[%clk 0:00:02]} 32. Bf3 {[%clk 0:01:53]}  d4 {[%clk 0:00:02]} 33. Bxb7 {[%clk 0:01:53]}  Rd8 {[%clk 0:00:02]} 34. c6 {[%clk 0:01:53]}  Nc7 {[%clk 0:00:02]} 35. Ke2 {[%clk 0:01:52]}  Kf7 {[%clk 0:00:03]} 36. Kd3 {[%clk 0:01:52]}  Ke6 {[%clk 0:00:03]} 37. Ra1 {[%clk 0:01:53]}  a6 {[%clk 0:00:03]} 38. Bxa6 {[%clk 0:01:45]}  Ra8 {[%clk 0:00:03]} 39. Bc4+ {[%clk 0:01:45]}  Kxe5 {[%clk 0:00:04]} 40. Re1+ {[%clk 0:01:45]}  Kd6 {[%clk 0:00:04]} 41. Kxd4 {[%clk 0:01:43]}  Kxc6 {[%clk 0:00:04]} 42. Re7 {[%clk 0:01:43]}  Ra4 {[%clk 0:00:04]} 43. Rxh7 {[%clk 0:01:37]}  Nb5+ {[%clk 0:00:05]} 44. Kd3 {[%clk 0:01:38]}  Ra3+ {[%clk 0:00:05]} 45. Kd2 {[%clk 0:01:38]}  Nd6 {[%clk 0:00:05]} 46. Be6 {[%clk 0:01:31]}  Kc5 {[%clk 0:00:04]} 47. h5 {[%clk 0:01:22]}  Kd4 {[%clk 0:00:03]} 48. h6 {[%clk 0:01:21]}  Ne4+ {[%clk 0:00:03]} 49. Kc2 {[%clk 0:01:22]}  Rc3+ {[%clk 0:00:02]} 50. Kb2 {[%clk 0:01:22]}  Rc6 {[%clk 0:00:01]} 51. Rd7+ {[%clk 0:01:21]}  Ke3 {[%clk 0:00:01]} 52. h7 {[%clk 0:01:22]}  Rb6+ {[%clk 0:00:01]} 53. Kc2 {[%clk 0:01:21]}  Rb8 {[%clk 0:00:01]} 54. Bg8 {[%clk 0:01:20]}  Rc8+ {[%clk 0:00:02]} 55. Kb2 {[%clk 0:01:20]}  Rb8+ {[%clk 0:00:02]} 56. Ka3 {[%clk 0:01:20]}  Nc3 {[%clk 0:00:02]} 57. h8=Q {[%clk 0:01:16]}  Nb5+ {[%clk 0:00:03]} 58. Kb2 {[%clk 0:01:16]}  Nd6+ {[%clk 0:00:01]} 59. Kc2 {[%clk 0:01:11]}  Rc8+ {[%clk 0:00:01]} 60. Kd1 {[%clk 0:01:12]}  Ne4 {[%clk 0:00:02]} 61. Qh3+ {[%clk 0:01:04]}  Kf2 {[%clk 0:00:02]} 62. Qxf5+ {[%clk 0:01:02]}  Kg1 {[%clk 0:00:02]} 63. Qxe4 {[%clk 0:01:02]}  Rb8 {[%clk 0:00:02]} 64. Qe3+ {[%clk 0:01:01]}  Kh1 {[%clk 0:00:02]} 65. Rh7+ {[%clk 0:01:01]}  Kxg2 {[%clk 0:00:02]} 66. Rg7+ {[%clk 0:01:01]}  Kh2 {[%clk 0:00:02]} 67. Qh6# {[%clk 0:01:01]} 1-0


[Site "https://www.chess.com"]

[Event "Titled Tuesday Blitz June 6 Late 2023"]
[White "Tanenbaum, Zachary"]
[Black "Sjugirov, Sanan"]
[WhiteFideId "2060850"]
[BlackFideId "4189302"]
[WhiteElo "2207"]
[BlackElo "2569"]
[Result "0-1"]
[Round "6"]
[TimeControl "180+2"]
[Date "2023.06.07"]
[WhiteClock "0:00:11"]
[BlackClock "0:01:08"]
[Board "17"]

1. e4 {[%clk 0:02:54]}  c5 {[%clk 0:03:00]} 2. Nf3 {[%clk 0:02:54]}  d6 {[%clk 0:03:00]} 3. d4 {[%clk 0:02:54]}  cxd4 {[%clk 0:03:01]} 4. Nxd4 {[%clk 0:02:54]}  Nf6 {[%clk 0:03:02]} 5. Nc3 {[%clk 0:02:55]}  a6 {[%clk 0:03:02]} 6. Be3 {[%clk 0:02:55]}  e5 {[%clk 0:03:03]} 7. Nb3 {[%clk 0:02:55]}  Be6 {[%clk 0:03:02]} 8. h3 {[%clk 0:02:55]}  Be7 {[%clk 0:03:02]} 9. f4 {[%clk 0:02:55]}  g6 {[%clk 0:02:39]} 10. fxe5 {[%clk 0:02:50]}  Nh5 {[%clk 0:02:31]} 11. exd6 {[%clk 0:01:51]}  Bh4+ {[%clk 0:02:31]} 12. Bf2 {[%clk 0:01:51]}  Bxf2+ {[%clk 0:02:23]} 13. Kxf2 {[%clk 0:01:52]}  Nc6 {[%clk 0:02:09]} 14. Be2 {[%clk 0:01:34]}  Qb6+ {[%clk 0:02:01]} 15. Ke1 {[%clk 0:01:33]}  Ng3 {[%clk 0:02:00]} 16. d7+ {[%clk 0:01:18]}  Kd8 {[%clk 0:01:59]} 17. Qd6 {[%clk 0:01:05]}  Nxh1 {[%clk 0:01:49]} 18. Nd5 {[%clk 0:01:04]}  Bxd5 {[%clk 0:01:39]} 19. exd5 {[%clk 0:01:05]}  Qb4+ {[%clk 0:01:37]} 20. Qxb4 {[%clk 0:01:04]}  Nxb4 {[%clk 0:01:38]} 21. Kd2 {[%clk 0:00:52]}  Ng3 {[%clk 0:01:38]} 22. Bf3 {[%clk 0:00:52]}  a5 {[%clk 0:01:31]} 23. Nc5 {[%clk 0:00:49]}  b6 {[%clk 0:01:28]} 24. Na4 {[%clk 0:00:48]}  Rb8 {[%clk 0:01:26]} 25. c4 {[%clk 0:00:39]}  Na6 {[%clk 0:01:23]} 26. Re1 {[%clk 0:00:18]}  Kxd7 {[%clk 0:01:20]} 27. Re3 {[%clk 0:00:17]}  Nc5 {[%clk 0:01:11]} 28. Nc3 {[%clk 0:00:16]}  f5 {[%clk 0:01:08]} 29. Nb5 {[%clk 0:00:11]}  Nf1+ {[%clk 0:01:08]} 0-1


[Site "https://www.chess.com"]

[Event "Titled Tuesday Blitz June 6 Late 2023"]
[White "Kramnik, Vladimir"]
[Black "Jaracz, Pawel"]
[WhiteFideId "4101588"]
[BlackFideId "1102222"]
[WhiteElo "2703"]
[BlackElo "2454"]
[Result "1/2-1/2"]
[Round "6"]
[TimeControl "180+2"]
[Date "2023.06.07"]
[WhiteClock "0:00:07"]
[BlackClock "0:00:07"]
[Board "24"]

1. e4 {[%clk 0:03:00]}  c6 {[%clk 0:02:55]} 2. d4 {[%clk 0:02:59]}  d5 {[%clk 0:02:55]} 3. Nd2 {[%clk 0:02:59]}  dxe4 {[%clk 0:02:55]} 4. Nxe4 {[%clk 0:02:59]}  Bf5 {[%clk 0:02:55]} 5. Ng3 {[%clk 0:02:59]}  Bg6 {[%clk 0:02:56]} 6. h4 {[%clk 0:02:59]}  h6 {[%clk 0:02:56]} 7. Nf3 {[%clk 0:02:56]}  Nd7 {[%clk 0:02:55]} 8. h5 {[%clk 0:02:55]}  Bh7 {[%clk 0:02:56]} 9. Bd3 {[%clk 0:02:56]}  Bxd3 {[%clk 0:02:56]} 10. Qxd3 {[%clk 0:02:56]}  e6 {[%clk 0:02:56]} 11. Bd2 {[%clk 0:02:57]}  Ngf6 {[%clk 0:02:56]} 12. O-O-O {[%clk 0:02:56]}  Be7 {[%clk 0:02:56]} 13. Ne4 {[%clk 0:02:52]}  Qb6 {[%clk 0:02:56]} 14. Nxf6+ {[%clk 0:02:49]}  Bxf6 {[%clk 0:02:55]} 15. Bf4 {[%clk 0:02:06]}  Rd8 {[%clk 0:02:42]} 16. c3 {[%clk 0:02:02]}  c5 {[%clk 0:02:30]} 17. d5 {[%clk 0:01:44]}  O-O {[%clk 0:02:30]} 18. g4 {[%clk 0:01:37]}  exd5 {[%clk 0:02:21]} 19. g5 {[%clk 0:01:36]}  hxg5 {[%clk 0:02:21]} 20. Nxg5 {[%clk 0:01:36]}  Bxg5 {[%clk 0:02:20]} 21. Bxg5 {[%clk 0:01:37]}  Ne5 {[%clk 0:02:11]} 22. Qg3 {[%clk 0:01:26]}  f6 {[%clk 0:02:07]} 23. Bf4 {[%clk 0:01:10]}  Qe6 {[%clk 0:01:55]} 24. Rhg1 {[%clk 0:01:02]}  Rd7 {[%clk 0:01:31]} 25. h6 {[%clk 0:01:02]}  Rff7 {[%clk 0:01:21]} 26. hxg7 {[%clk 0:00:34]}  Rxg7 {[%clk 0:01:18]} 27. Qe3 {[%clk 0:00:34]}  d4 {[%clk 0:01:14]} 28. Rxg7+ {[%clk 0:00:31]}  Rxg7 {[%clk 0:01:10]} 29. cxd4 {[%clk 0:00:30]}  cxd4 {[%clk 0:01:03]} 30. Qxd4 {[%clk 0:00:28]}  Nc6 {[%clk 0:00:43]} 31. Qd5 {[%clk 0:00:19]}  Qxd5 {[%clk 0:00:28]} 32. Rxd5 {[%clk 0:00:19]}  Kf7 {[%clk 0:00:20]} 33. Be3 {[%clk 0:00:19]}  Ke6 {[%clk 0:00:20]} 34. Rb5 {[%clk 0:00:20]}  b6 {[%clk 0:00:20]} 35. Kc2 {[%clk 0:00:16]}  Rc7 {[%clk 0:00:19]} 36. Kb1 {[%clk 0:00:14]}  Ne7 {[%clk 0:00:18]} 37. Rh5 {[%clk 0:00:13]}  Nd5 {[%clk 0:00:18]} 38. Bd2 {[%clk 0:00:13]}  Rg7 {[%clk 0:00:18]} 39. Rh3 {[%clk 0:00:09]}  Rg2 {[%clk 0:00:16]} 40. Rf3 {[%clk 0:00:09]}  Ke5 {[%clk 0:00:16]} 41. Kc2 {[%clk 0:00:07]}  Ke4 {[%clk 0:00:14]} 42. Ra3 {[%clk 0:00:08]}  Rxf2 {[%clk 0:00:12]} 43. Rxa7 {[%clk 0:00:07]}  Ne3+ {[%clk 0:00:10]} 44. Kc3 {[%clk 0:00:07]}  Nd5+ {[%clk 0:00:08]} 45. Kc2 {[%clk 0:00:07]}  Nb4+ {[%clk 0:00:08]} 46. Kc3 {[%clk 0:00:06]}  Nd5+ {[%clk 0:00:07]} 47. Kc2 {[%clk 0:00:07]} 1/2-1/2


[Site "https://www.chess.com"]

[Event "Titled Tuesday Blitz June 6 Late 2023"]
[White "Hollan, Martin"]
[Black "Zakhartsov, Vladimir"]
[WhiteFideId "360937"]
[BlackFideId "4145097"]
[WhiteElo "2370"]
[BlackElo "2508"]
[Result "0-1"]
[Round "6"]
[TimeControl "180+2"]
[Date "2023.06.07"]
[WhiteClock "0:00:32"]
[BlackClock "0:01:10"]
[Board "27"]

1. b4 {[%clk 0:03:00]}  b5 {[%clk 0:02:37]} 2. e3 {[%clk 0:02:59]}  e6 {[%clk 0:02:35]} 3. Bxb5 {[%clk 0:02:56]}  Qg5 {[%clk 0:02:30]} 4. Bf1 {[%clk 0:02:54]}  Bxb4 {[%clk 0:02:29]} 5. Nf3 {[%clk 0:02:54]}  Qe7 {[%clk 0:02:29]} 6. Bb2 {[%clk 0:02:53]}  Nf6 {[%clk 0:02:28]} 7. Be2 {[%clk 0:02:52]}  Nc6 {[%clk 0:02:26]} 8. O-O {[%clk 0:02:34]}  Rb8 {[%clk 0:02:26]} 9. Nc3 {[%clk 0:02:27]}  e5 {[%clk 0:02:06]} 10. e4 {[%clk 0:02:25]}  O-O {[%clk 0:02:01]} 11. Nd5 {[%clk 0:02:23]}  Nxd5 {[%clk 0:01:55]} 12. exd5 {[%clk 0:02:23]}  Bc5 {[%clk 0:01:54]} 13. Rb1 {[%clk 0:02:10]}  Nd4 {[%clk 0:01:48]} 14. Bxd4 {[%clk 0:02:01]}  Rxb1 {[%clk 0:01:47]} 15. Qxb1 {[%clk 0:02:02]}  exd4 {[%clk 0:01:46]} 16. Bd3 {[%clk 0:02:01]}  d6 {[%clk 0:01:45]} 17. c3 {[%clk 0:01:41]}  dxc3 {[%clk 0:01:44]} 18. Bxh7+ {[%clk 0:01:39]}  Kh8 {[%clk 0:01:45]} 19. Bd3 {[%clk 0:01:36]}  Bg4 {[%clk 0:01:39]} 20. dxc3 {[%clk 0:01:18]}  Bxf3 {[%clk 0:01:38]} 21. gxf3 {[%clk 0:01:17]}  Qg5+ {[%clk 0:01:38]} 22. Kh1 {[%clk 0:01:17]}  Qxd5 {[%clk 0:01:38]} 23. Be4 {[%clk 0:01:14]}  Qe5 {[%clk 0:01:38]} 24. Qd3 {[%clk 0:01:09]}  Qf4 {[%clk 0:01:31]} 25. Rb1 {[%clk 0:00:49]}  g6 {[%clk 0:01:21]} 26. Kg2 {[%clk 0:00:46]}  Kg7 {[%clk 0:01:19]} 27. h3 {[%clk 0:00:44]}  Rh8 {[%clk 0:01:16]} 28. Rh1 {[%clk 0:00:33]}  Rh5 {[%clk 0:01:13]} 29. Kf1 {[%clk 0:00:32]}  Qc1+ {[%clk 0:01:10]} 0-1


[Site "https://www.chess.com"]

[Event "Titled Tuesday Blitz June 6 Late 2023"]
[White "Zhigalko, Sergei"]
[Black "Martinez Ramirez, Lennis"]
[WhiteFideId "13502956"]
[BlackFideId "3509079"]
[WhiteElo "2626"]
[BlackElo "2410"]
[Result "1-0"]
[Round "6"]
[TimeControl "180+2"]
[Date "2023.06.07"]
[WhiteClock "0:00:05"]
[BlackClock "0:00:07"]
[Board "28"]

1. e4 {[%clk 0:03:00]}  c5 {[%clk 0:03:00]} 2. Nf3 {[%clk 0:03:00]}  Nc6 {[%clk 0:03:00]} 3. c3 {[%clk 0:03:00]}  Nf6 {[%clk 0:02:57]} 4. e5 {[%clk 0:03:00]}  Nd5 {[%clk 0:02:58]} 5. Bc4 {[%clk 0:03:00]}  Nb6 {[%clk 0:02:57]} 6. Bb3 {[%clk 0:03:00]}  d5 {[%clk 0:02:55]} 7. exd6 {[%clk 0:03:01]}  Qxd6 {[%clk 0:02:48]} 8. O-O {[%clk 0:03:00]}  Be6 {[%clk 0:02:48]} 9. Bxe6 {[%clk 0:03:00]}  Qxe6 {[%clk 0:02:47]} 10. a4 {[%clk 0:03:01]}  O-O-O {[%clk 0:02:40]} 11. a5 {[%clk 0:01:07]}  Nc4 {[%clk 0:02:35]} 12. a6 {[%clk 0:01:02]}  b6 {[%clk 0:02:35]} 13. d4 {[%clk 0:00:57]}  f6 {[%clk 0:02:07]} 14. Qa4 {[%clk 0:00:42]}  cxd4 {[%clk 0:01:49]} 15. cxd4 {[%clk 0:00:39]}  N4a5 {[%clk 0:01:31]} 16. Nbd2 {[%clk 0:00:27]}  g5 {[%clk 0:00:42]} 17. b4 {[%clk 0:00:19]}  Nc4 {[%clk 0:00:42]} 18. Re1 {[%clk 0:00:18]}  Qd5 {[%clk 0:00:40]} 19. Nxc4 {[%clk 0:00:17]}  Qxc4 {[%clk 0:00:41]} 20. Bd2 {[%clk 0:00:12]}  b5 {[%clk 0:00:41]} 21. Rac1 {[%clk 0:00:04]}  bxa4 {[%clk 0:00:34]} 22. Rxc4 {[%clk 0:00:03]}  Kd7 {[%clk 0:00:34]} 23. b5 {[%clk 0:00:03]}  Nb8 {[%clk 0:00:29]} 24. Ba5 {[%clk 0:00:03]}  Re8 {[%clk 0:00:21]} 25. Rc7+ {[%clk 0:00:03]}  Kd6 {[%clk 0:00:22]} 26. Rxa7 {[%clk 0:00:04]}  e5 {[%clk 0:00:21]} 27. Rb7 {[%clk 0:00:03]}  Nd7 {[%clk 0:00:20]} 28. Bb4+ {[%clk 0:00:03]}  Kd5 {[%clk 0:00:21]} 29. Bxf8 {[%clk 0:00:03]}  Nxf8 {[%clk 0:00:20]} 30. a7 {[%clk 0:00:03]}  Ng6 {[%clk 0:00:19]} 31. dxe5 {[%clk 0:00:03]}  g4 {[%clk 0:00:19]} 32. Rd1+ {[%clk 0:00:03]}  Kc5 {[%clk 0:00:19]} 33. Rc1+ {[%clk 0:00:03]}  Kb4 {[%clk 0:00:18]} 34. Nd4 {[%clk 0:00:03]}  Nxe5 {[%clk 0:00:18]} 35. Nc6+ {[%clk 0:00:03]}  Nxc6 {[%clk 0:00:19]} 36. bxc6+ {[%clk 0:00:04]}  Ka5 {[%clk 0:00:19]} 37. c7 {[%clk 0:00:04]}  Ka6 {[%clk 0:00:18]} 38. Rcb1 {[%clk 0:00:04]}  Ra8 {[%clk 0:00:17]} 39. R7b4 {[%clk 0:00:04]}  Ka5 {[%clk 0:00:14]} 40. Rb5+ {[%clk 0:00:04]}  Ka6 {[%clk 0:00:14]} 41. R5b4 {[%clk 0:00:04]}  Ka5 {[%clk 0:00:15]} 42. Rb8 {[%clk 0:00:05]}  a3 {[%clk 0:00:13]} 43. h4 {[%clk 0:00:05]}  Ka6 {[%clk 0:00:07]} 44. R8b3 {[%clk 0:00:05]}  a2 {[%clk 0:00:07]} 45. Ra3# {[%clk 0:00:05]} 1-0


[Site "https://www.chess.com"]

[Event "Titled Tuesday Blitz June 6 Late 2023"]
[White "Rosen, Eric"]
[Black "Harish, Neeraj"]
[WhiteFideId "2032562"]
[BlackFideId "30958130"]
[WhiteElo "2331"]
[BlackElo "1879"]
[Result "1-0"]
[Round "6"]
[TimeControl "180+2"]
[Date "2023.06.07"]
[WhiteClock "0:00:07"]
[BlackClock "0:00:49"]
[Board "36"]

1. d4 {[%clk 0:03:00]}  d5 {[%clk 0:02:53]} 2. Bf4 {[%clk 0:03:01]}  Nf6 {[%clk 0:02:50]} 3. e3 {[%clk 0:03:00]}  e6 {[%clk 0:02:51]} 4. Nf3 {[%clk 0:03:00]}  Bd6 {[%clk 0:02:51]} 5. Ne5 {[%clk 0:03:00]}  O-O {[%clk 0:02:48]} 6. Nd2 {[%clk 0:03:00]}  c5 {[%clk 0:02:48]} 7. c3 {[%clk 0:03:01]}  Qc7 {[%clk 0:02:48]} 8. Bd3 {[%clk 0:03:00]}  Nbd7 {[%clk 0:02:48]} 9. Ndf3 {[%clk 0:03:00]}  Ne4 {[%clk 0:02:48]} 10. O-O {[%clk 0:02:56]}  Ndf6 {[%clk 0:02:48]} 11. h3 {[%clk 0:02:47]}  b6 {[%clk 0:02:37]} 12. Nd2 {[%clk 0:02:38]}  Bb7 {[%clk 0:02:30]} 13. a4 {[%clk 0:02:37]}  Rac8 {[%clk 0:02:25]} 14. Qe2 {[%clk 0:02:31]}  Nxd2 {[%clk 0:02:22]} 15. Qxd2 {[%clk 0:02:31]}  Ne4 {[%clk 0:02:22]} 16. Bxe4 {[%clk 0:01:40]}  dxe4 {[%clk 0:02:20]} 17. Ng4 {[%clk 0:01:40]}  Bxf4 {[%clk 0:02:14]} 18. exf4 {[%clk 0:01:41]}  cxd4 {[%clk 0:02:15]} 19. Qxd4 {[%clk 0:01:41]}  Qxf4 {[%clk 0:02:09]} 20. Qe3 {[%clk 0:01:24]}  Qxe3 {[%clk 0:02:08]} 21. fxe3 {[%clk 0:01:25]}  f5 {[%clk 0:02:06]} 22. Ne5 {[%clk 0:01:10]}  Rfd8 {[%clk 0:02:05]} 23. Rfd1 {[%clk 0:01:07]}  Ba6 {[%clk 0:01:39]} 24. Rd4 {[%clk 0:01:01]}  Rxd4 {[%clk 0:01:32]} 25. exd4 {[%clk 0:00:59]}  g5 {[%clk 0:01:25]} 26. Re1 {[%clk 0:00:47]}  b5 {[%clk 0:01:20]} 27. axb5 {[%clk 0:00:21]}  Bxb5 {[%clk 0:01:21]} 28. Ra1 {[%clk 0:00:21]}  a6 {[%clk 0:01:21]} 29. Kf2 {[%clk 0:00:20]}  Rb8 {[%clk 0:01:22]} 30. Ke3 {[%clk 0:00:19]}  Kg7 {[%clk 0:01:16]} 31. b4 {[%clk 0:00:16]}  Rc8 {[%clk 0:01:14]} 32. c4 {[%clk 0:00:10]}  f4+ {[%clk 0:01:03]} 33. Kxe4 {[%clk 0:00:05]}  Bxc4 {[%clk 0:01:03]} 34. Nxc4 {[%clk 0:00:04]}  Rxc4 {[%clk 0:01:03]} 35. Rxa6 {[%clk 0:00:04]}  Kf6 {[%clk 0:01:00]} 36. Rb6 {[%clk 0:00:04]}  Rc1 {[%clk 0:00:55]} 37. d5 {[%clk 0:00:03]}  Re1+ {[%clk 0:00:54]} 38. Kf3 {[%clk 0:00:04]}  Re3+ {[%clk 0:00:53]} 39. Kf2 {[%clk 0:00:04]}  h5 {[%clk 0:00:49]} 40. Rxe6+ {[%clk 0:00:02]}  Rxe6 {[%clk 0:00:49]} 41. dxe6 {[%clk 0:00:03]}  Kxe6 {[%clk 0:00:50]} 42. Kf3 {[%clk 0:00:02]}  Kd5 {[%clk 0:00:48]} 43. h4 {[%clk 0:00:02]}  gxh4 {[%clk 0:00:46]} 44. Kxf4 {[%clk 0:00:03]}  Kc4 {[%clk 0:00:47]} 45. Kg5 {[%clk 0:00:03]}  Kxb4 {[%clk 0:00:48]} 46. Kxh4 {[%clk 0:00:04]}  Kc5 {[%clk 0:00:48]} 47. Kxh5 {[%clk 0:00:04]}  Kd6 {[%clk 0:00:49]} 48. Kg6 {[%clk 0:00:05]}  Ke7 {[%clk 0:00:50]} 49. Kg7 {[%clk 0:00:05]}  Ke6 {[%clk 0:00:49]} 50. g4 {[%clk 0:00:05]}  Ke7 {[%clk 0:00:48]} 51. g5 {[%clk 0:00:06]}  Ke6 {[%clk 0:00:48]} 52. g6 {[%clk 0:00:07]}  Ke7 {[%clk 0:00:49]} 53. Kh7 {[%clk 0:00:07]} 1-0


[Site "https://www.chess.com"]

[Event "Titled Tuesday Blitz June 6 Late 2023"]
[White "Xiong, Jeffery"]
[Black "Alexikov, Alexander"]
[WhiteFideId "2047640"]
[BlackFideId "14103958"]
[WhiteElo "2726"]
[BlackElo "2186"]
[Result "1-0"]
[Round "6"]
[TimeControl "180+2"]
[Date "2023.06.07"]
[WhiteClock "0:00:58"]
[BlackClock "0:00:01"]
[Board "37"]

1. e4 {[%clk 0:03:00]}  c5 {[%clk 0:02:58]} 2. Nf3 {[%clk 0:03:01]}  d6 {[%clk 0:02:58]} 3. Nc3 {[%clk 0:03:01]}  Nf6 {[%clk 0:02:58]} 4. d4 {[%clk 0:03:02]}  cxd4 {[%clk 0:02:57]} 5. Qxd4 {[%clk 0:03:03]}  a6 {[%clk 0:02:55]} 6. Nd5 {[%clk 0:03:02]}  Nc6 {[%clk 0:02:51]} 7. Qd3 {[%clk 0:03:02]}  e6 {[%clk 0:02:48]} 8. Nxf6+ {[%clk 0:03:03]}  Qxf6 {[%clk 0:02:47]} 9. c3 {[%clk 0:03:04]}  Ne5 {[%clk 0:02:43]} 10. Nxe5 {[%clk 0:03:03]}  Qxe5 {[%clk 0:02:43]} 11. Be2 {[%clk 0:03:04]}  Be7 {[%clk 0:02:40]} 12. O-O {[%clk 0:02:59]}  O-O {[%clk 0:02:33]} 13. a4 {[%clk 0:02:59]}  b6 {[%clk 0:02:27]} 14. f4 {[%clk 0:02:58]}  Qc5+ {[%clk 0:02:26]} 15. Be3 {[%clk 0:02:58]}  Qc7 {[%clk 0:02:26]} 16. Kh1 {[%clk 0:02:55]}  Bb7 {[%clk 0:02:25]} 17. f5 {[%clk 0:02:55]}  Bf6 {[%clk 0:02:14]} 18. fxe6 {[%clk 0:02:41]}  fxe6 {[%clk 0:02:13]} 19. Bg4 {[%clk 0:02:42]}  Rfe8 {[%clk 0:02:01]} 20. Bg1 {[%clk 0:02:34]}  Be5 {[%clk 0:01:52]} 21. Bd4 {[%clk 0:02:05]}  b5 {[%clk 0:01:38]} 22. Bxe5 {[%clk 0:01:59]}  dxe5 {[%clk 0:01:37]} 23. axb5 {[%clk 0:02:00]}  axb5 {[%clk 0:01:35]} 24. Rxa8 {[%clk 0:01:56]}  Bxa8 {[%clk 0:01:33]} 25. Qxb5 {[%clk 0:01:56]}  Re7 {[%clk 0:01:25]} 26. Qa4 {[%clk 0:01:44]}  Bb7 {[%clk 0:01:18]} 27. h3 {[%clk 0:01:39]}  Qc6 {[%clk 0:01:01]} 28. Qb4 {[%clk 0:01:26]}  Qc7 {[%clk 0:00:50]} 29. Rd1 {[%clk 0:01:25]}  g6 {[%clk 0:00:37]} 30. Rd6 {[%clk 0:01:24]}  Kg7 {[%clk 0:00:35]} 31. Bxe6 {[%clk 0:01:22]}  Bxe4 {[%clk 0:00:30]} 32. Qb6 {[%clk 0:01:13]}  Qb7 {[%clk 0:00:12]} 33. Qxb7 {[%clk 0:01:08]}  Rxb7 {[%clk 0:00:12]} 34. b4 {[%clk 0:01:08]}  Kf8 {[%clk 0:00:06]} 35. Bd5 {[%clk 0:01:06]}  Bxd5 {[%clk 0:00:01]} 36. Rxd5 {[%clk 0:01:07]}  Rc7 {[%clk 0:00:01]} 37. Rc5 {[%clk 0:00:58]} 1-0


[Site "https://www.chess.com"]